fUSD/lending_fUSD_20250209
["ID","MTS","AMOUNT","RATE_DAILY","PERIOD"]
[352394639,1739076640060,-930.43,9.246e-05,2]
[352394641,1739076640069,-500.0,9.246e-05,2]
[352394643,1739076640079,-500.0,9.246e-05,2]
[352394645,1739076640091,-500.0,9.246e-05,2]
[352394647,1739076640100,-1820.59,9.246e-05,2]
[352394648,1739076640110,-951.34,9.246e-05,2]
[352394649,1739076640119,-500.0,9.246e-05,2]
[352394650,1739076640129,-500.0,9.246e-05,2]
[352394651,1739076640139,-500.0,9.246e-05,2]
[352394653,1739076640149,-500.0,9.246e-05,2]
[352394654,1739076640159,-593.69,9.246e-05,2]
[352394656,1739076640169,-500.0,9.246e-05,2]
[352394657,1739076640178,-500.0,9.246e-05,2]
[352394659,1739076640188,-505.59,9.246e-05,2]
[352394660,1739076640198,-500.0,9.246e-05,2]
[352394661,1739076640208,-768.25,9.246e-05,2]
[352394662,1739076640218,-1073.3,9.246e-05,2]
[352394663,1739076640227,-500.0,9.246e-05,2]
[352394664,1739076640237,-1000.0,9.247e-05,2]
[352394665,1739076640247,-193.78,9.272e-05,2]
[352394667,1739076640256,-500.0,9.278e-05,2]
[352394668,1739076640266,-925.53,9.279e-05,2]
[352394669,1739076640275,-255.0,9.281e-05,2]
[352394670,1739076640285,-1198.93,9.35e-05,2]
[352394671,1739076640296,-1169.26,9.376e-05,2]
[352394672,1739076640306,-500.0,9.383e-05,2]
[352394673,1739076640316,-595.92,9.383e-05,2]
[352394674,1739076640326,-500.0,9.383e-05,2]
[352394675,1739076640337,-500.0,9.383e-05,2]
[352394676,1739076640347,-500.0,9.383e-05,2]
[352394677,1739076640357,-500.0,9.383e-05,2]
[352394678,1739076640367,-500.0,9.383e-05,2]
[352394679,1739076640376,-500.0,9.383e-05,2]
[352394680,1739076640386,-500.0,9.383e-05,2]
[352394681,1739076640395,-500.0,9.383e-05,2]
[352394682,1739076640404,-500.0,9.383e-05,2]
[352394683,1739076640414,-205.084992,9.383e-05,2]
[352394684,1739076640424,-254.811809,9.383e-05,2]
[352394685,1739076640433,-500.0,9.383e-05,2]
[352394686,1739076640443,-500.0,9.383e-05,2]
[352394687,1739076640453,-500.0,9.383e-05,2]
[352394688,1739076640464,-500.0,9.383e-05,2]
[352394689,1739076640473,-500.0,9.383e-05,2]
[352394690,1739076640483,-256.6828916,9.383e-05,2]
[352394691,1739076640492,-500.0,9.383e-05,2]
[352394692,1739076640502,-500.0,9.383e-05,2]
[352394693,1739076640512,-500.0,9.383e-05,2]
[352394694,1739076640522,-500.0,9.383e-05,2]
[352394695,1739076640533,-500.0,9.383e-05,2]
[352394696,1739076640544,-659.91,9.383e-05,2]
[352394697,1739076640558,-500.0,9.383e-05,2]
[352394698,1739076640567,-776.05,9.383e-05,2]
[352394699,1739076640578,-500.0,9.383e-05,2]
[352394700,1739076640588,-1523.21,9.383e-05,2]
[352394701,1739076640598,-538.55,9.383e-05,2]
[352394702,1739076640608,-788.97,9.383e-05,2]
[352394703,1739076640618,-500.0,9.383e-05,2]
[352394704,1739076640630,-500.0,9.383e-05,2]
[352394705,1739076640640,-414.14,9.383e-05,2]
[352394706,1739076640650,-601.66,9.383e-05,2]
[352394707,1739076640660,-875.01,9.383e-05,2]
[352394708,1739076640670,-500.0,9.383e-05,2]
[352394709,1739076640679,-500.0,9.383e-05,2]
[352394710,1739076640690,-500.0,9.383e-05,2]
[352394711,1739076640699,-562.88,9.383e-05,2]
[352394712,1739076640708,-500.0,9.383e-05,2]
[352394713,1739076640718,-500.0,9.383e-05,2]
[352394714,1739076640727,-500.0,9.383e-05,2]
[352394715,1739076640744,-500.0,9.383e-05,2]
[352394717,1739076640757,-500.0,9.383e-05,2]
[352394719,1739076640767,-868.43,9.383e-05,2]
[352394721,1739076640777,-500.0,9.383e-05,2]
[352394722,1739076640787,-1231.28,9.383e-05,2]
[352394723,1739076640797,-500.0,9.383e-05,2]
[352394724,1739076640807,-500.0,9.383e-05,2]
[352394725,1739076640817,-500.0,9.383e-05,2]
[352394726,1739076640828,-500.0,9.383e-05,2]
[352394727,1739076640838,-500.0,9.383e-05,2]
[352394728,1739076640848,-500.0,9.383e-05,2]
[352394729,1739076640859,-500.0,9.383e-05,2]
[352394730,1739076640871,-526.88,9.383e-05,2]
[352394731,1739076640884,-500.0,9.383e-05,2]
[352394732,1739076640894,-1294.54,9.383e-05,2]
[352394733,1739076640905,-279.96136393,9.383e-05,2]
[352394734,1739076640916,-500.0,9.383e-05,2]
[352394735,1739076640926,-532.97,9.383e-05,2]
[352394736,1739076640937,-569.17,9.383e-05,2]
[352394737,1739076640947,-500.0,9.383e-05,2]
[352394738,1739076640958,-595.69,9.383e-05,2]
[352394739,1739076640968,-561.26,9.383e-05,2]
[352394740,1739076640978,-500.0,9.383e-05,2]
[352394741,1739076640988,-614.2,9.383e-05,2]
[352394742,1739076640998,-934.74,9.383e-05,2]
[352394743,1739076641007,-500.0,9.383e-05,2]
[352394744,1739076641019,-1217.68,9.383e-05,2]
[352394745,1739076641028,-576.79,9.383e-05,2]
[352394746,1739076641039,-500.0,9.383e-05,2]
[352394747,1739076641048,-2420.22,9.383e-05,2]
[352394748,1739076641058,-500.0,9.383e-05,2]
[352394749,1739076641068,-500.0,9.383e-05,2]
[352394750,1739076641077,-553.85,9.383e-05,2]
[352394751,1739076641088,-500.0,9.383e-05,2]
[352394752,1739076641098,-802.79,9.383e-05,2]
[352394753,1739076641108,-696.38,9.383e-05,2]
[352394754,1739076641119,-500.0,9.383e-05,2]
[352394755,1739076641129,-500.0,9.383e-05,2]
[352394756,1739076641139,-500.0,9.383e-05,2]
[352394757,1739076641149,-500.0,9.383e-05,2]
[352394758,1739076641159,-203.40461572,9.383e-05,2]
[352394759,1739076641180,-506.80538428,9.383e-05,2]
[352394760,1739076641189,-500.0,9.383e-05,2]
[352394761,1739076641199,-578.14,9.383e-05,2]
[352394762,1739076641210,-224.31324222,9.383e-05,2]
[352394763,1739076641220,-930.43,9.383e-05,2]
[352394764,1739076641231,-500.0,9.383e-05,2]
[352394765,1739076641241,-500.0,9.383e-05,2]
[352394766,1739076641251,-500.0,9.383e-05,2]
[352394767,1739076641261,-1820.59,9.383e-05,2]
[352394768,1739076641271,-951.34,9.383e-05,2]
[352394769,1739076641282,-568.18264281,9.383e-05,2]
[352394770,1739076641294,-386.96,9.383e-05,2]
[352394771,1739076641305,-500.0,9.383e-05,2]
[352394772,1739076641315,-500.0,9.383e-05,2]
[352394773,1739076641325,-593.69,9.383e-05,2]
[352394774,1739076641336,-500.0,9.383e-05,2]
[352394775,1739076641346,-500.0,9.383e-05,2]
[352394776,1739076641356,-505.59,9.383e-05,2]
[352394777,1739076641366,-500.0,9.383e-05,2]
[352394778,1739076641377,-768.25,9.383e-05,2]
[352394779,1739076641386,-1073.3,9.383e-05,2]
[352394780,1739076641397,-500.0,9.383e-05,2]
[352394781,1739076641407,-317.2,9.495e-05,2]
[352394782,1739076641418,-500.0,9.52e-05,2]
[352394783,1739076641427,-500.0,9.52e-05,2]
[352394784,1739076641439,-500.0,9.52e-05,2]
[352394785,1739076641449,-500.0,9.52e-05,2]
[352394786,1739076641459,-500.0,9.52e-05,2]
[352394787,1739076641469,-500.0,9.52e-05,2]
[352394788,1739076641478,-500.0,9.52e-05,2]
[352394789,1739076641488,-500.0,9.52e-05,2]
[352394790,1739076641497,-500.0,9.52e-05,2]
[352394791,1739076641507,-500.0,9.52e-05,2]
[352394792,1739076641516,-205.084992,9.52e-05,2]
[352394793,1739076641525,-254.811809,9.52e-05,2]
[352394794,1739076641535,-500.0,9.52e-05,2]
[352394795,1739076641544,-500.0,9.52e-05,2]
[352394796,1739076641557,-500.0,9.52e-05,2]
[352394797,1739076641566,-500.0,9.52e-05,2]
[352394798,1739076641576,-500.0,9.52e-05,2]
[352394799,1739076641585,-500.0,9.52e-05,2]
[352394800,1739076641596,-500.0,9.52e-05,2]
[352394801,1739076641605,-500.0,9.52e-05,2]
[352394802,1739076641614,-500.0,9.52e-05,2]
[352394803,1739076641624,-500.0,9.52e-05,2]
[352394804,1739076641641,-659.91,9.52e-05,2]
[352394805,1739076641650,-500.0,9.52e-05,2]
[352394806,1739076641659,-776.05,9.52e-05,2]
[352394807,1739076641669,-500.0,9.52e-05,2]
[352394808,1739076641678,-1523.21,9.52e-05,2]
[352394809,1739076641687,-788.97,9.52e-05,2]
[352394810,1739076641696,-500.0,9.52e-05,2]
[352394811,1739076641705,-500.0,9.52e-05,2]
[352394812,1739076641715,-601.66,9.52e-05,2]
[352394813,1739076641724,-875.01,9.52e-05,2]
[352394814,1739076641733,-500.0,9.52e-05,2]
[352394815,1739076641742,-500.0,9.52e-05,2]
[352394816,1739076641752,-500.0,9.52e-05,2]
[352394817,1739076641761,-562.88,9.52e-05,2]
[352394818,1739076641771,-500.0,9.52e-05,2]
[352394819,1739076641780,-500.0,9.52e-05,2]
[352394820,1739076641789,-608.2,9.52e-05,2]
[352394821,1739076641798,-500.0,9.52e-05,2]
[352394822,1739076641807,-500.0,9.52e-05,2]
[352394823,1739076641817,-868.43,9.52e-05,2]
[352394824,1739076641826,-500.0,9.52e-05,2]
[352394825,1739076641836,-1231.28,9.52e-05,2]
[352394826,1739076641846,-500.0,9.52e-05,2]
[352394827,1739076641855,-500.0,9.52e-05,2]
[352394828,1739076641864,-500.0,9.52e-05,2]
[352394829,1739076641874,-500.0,9.52e-05,2]
[352394830,1739076641883,-500.0,9.52e-05,2]
[352394831,1739076641892,-500.0,9.52e-05,2]
[352394832,1739076641901,-500.0,9.52e-05,2]
[352394833,1739076641911,-526.88,9.52e-05,2]
[352394834,1739076641921,-500.0,9.52e-05,2]
[352394835,1739076641931,-1294.54,9.52e-05,2]
[352394836,1739076641942,-500.0,9.52e-05,2]
[352394837,1739076641951,-532.97,9.52e-05,2]
[352394838,1739076641961,-569.17,9.52e-05,2]
[352394839,1739076641970,-500.0,9.52e-05,2]
[352394840,1739076641979,-595.69,9.52e-05,2]
[352394841,1739076641989,-561.26,9.52e-05,2]
[352394842,1739076641999,-500.0,9.52e-05,2]
[352394843,1739076642009,-614.2,9.52e-05,2]
[352394844,1739076642019,-934.74,9.52e-05,2]
[352394845,1739076642028,-500.0,9.52e-05,2]
[352394846,1739076642037,-1217.68,9.52e-05,2]
[352394847,1739076642048,-576.79,9.52e-05,2]
[352394848,1739076642059,-500.0,9.52e-05,2]
[352394849,1739076642069,-2420.22,9.52e-05,2]
[352394850,1739076642079,-500.0,9.52e-05,2]
[352394851,1739076642089,-500.0,9.52e-05,2]
[352394852,1739076642098,-553.85,9.52e-05,2]
[352394853,1739076642109,-500.0,9.52e-05,2]
[352394854,1739076642119,-802.79,9.52e-05,2]
[352394855,1739076642129,-696.38,9.52e-05,2]
[352394856,1739076642203,-500.0,9.52e-05,2]
[352394857,1739076642214,-500.0,9.52e-05,2]
[352394858,1739076642224,-500.0,9.52e-05,2]
[352394859,1739076642233,-500.0,9.52e-05,2]
[352394860,1739076642242,-710.21,9.52e-05,2]
[352394861,1739076642251,-500.0,9.52e-05,2]
[352394862,1739076642260,-578.14,9.52e-05,2]
[352394863,1739076642270,-930.43,9.52e-05,2]
[352394864,1739076642279,-500.0,9.52e-05,2]
[352394865,1739076642288,-500.0,9.52e-05,2]
[352394866,1739076642298,-608.66,9.52e-05,2]
[352394867,1739076642307,-1820.59,9.52e-05,2]
[352394868,1739076642317,-951.34,9.52e-05,2]
[352394869,1739076642326,-500.0,9.52e-05,2]
[352394870,1739076642336,-500.0,9.52e-05,2]
[352394871,1739076642345,-593.69,9.52e-05,2]
[352394872,1739076642354,-500.0,9.52e-05,2]
[352394873,1739076642363,-500.0,9.52e-05,2]
[352394874,1739076642372,-505.59,9.52e-05,2]
[352394875,1739076642381,-500.0,9.52e-05,2]
[352394876,1739076642390,-768.25,9.52e-05,2]
[352394877,1739076642400,-1073.3,9.52e-05,2]
[352394878,1739076642409,-500.0,9.52e-05,2]
[352394879,1739076642418,-313.59,9.553e-05,2]
[352394880,1739076642427,-150.0,9.57e-05,2]
[352394881,1739076642436,-150.0,9.638e-05,2]
[352394882,1739076642445,-500.0,9.657e-05,2]
[352394883,1739076642454,-500.0,9.657e-05,2]
[352394884,1739076642463,-487.04447747,9.657e-05,2]
[352394885,1739076642472,-500.0,9.657e-05,2]
[352394886,1739076642481,-500.0,9.657e-05,2]
[352394887,1739076642490,-500.0,9.657e-05,2]
[352394888,1739076642499,-500.0,9.657e-05,2]
[352394889,1739076642507,-500.0,9.657e-05,2]
[352394890,1739076642516,-500.0,9.657e-05,2]
[352394891,1739076642526,-500.0,9.657e-05,2]
[352394892,1739076642534,-205.084992,9.657e-05,2]
[352394893,1739076642543,-254.811809,9.657e-05,2]
[352394894,1739076642555,-500.0,9.657e-05,2]
[352394895,1739076642564,-500.0,9.657e-05,2]
[352394896,1739076642573,-500.0,9.657e-05,2]
[352394897,1739076642582,-560.88,9.657e-05,2]
[352394898,1739076642591,-500.0,9.657e-05,2]
[352394899,1739076642602,-500.0,9.657e-05,2]
[352394900,1739076642611,-500.0,9.657e-05,2]
[352394901,1739076642620,-500.0,9.657e-05,2]
[352394902,1739076642630,-500.0,9.657e-05,2]
[352394903,1739076642639,-500.0,9.657e-05,2]
[352394904,1739076642648,-659.91,9.657e-05,2]
[352394905,1739076642657,-500.0,9.657e-05,2]
[352394906,1739076642666,-776.05,9.657e-05,2]
[352394907,1739076642676,-631.09,9.657e-05,2]
[352394908,1739076642685,-1523.21,9.657e-05,2]
[352394909,1739076642694,-788.97,9.657e-05,2]
[352394910,1739076642703,-259.20872696,9.657e-05,2]
[352394911,1739076642712,-500.0,9.657e-05,2]
[352394912,1739076642722,-601.66,9.657e-05,2]
[352394913,1739076642731,-875.01,9.657e-05,2]
[352394914,1739076642740,-500.0,9.657e-05,2]
[352394915,1739076642749,-500.0,9.657e-05,2]
[352394916,1739076642758,-500.0,9.657e-05,2]
[352394917,1739076642768,-562.88,9.657e-05,2]
[352394918,1739076642777,-500.0,9.657e-05,2]
[352394919,1739076642786,-500.0,9.657e-05,2]
[352394920,1739076642795,-500.0,9.657e-05,2]
[352394921,1739076642804,-500.0,9.657e-05,2]
[352394922,1739076642813,-868.43,9.657e-05,2]
[352394923,1739076642822,-500.0,9.657e-05,2]
[352394924,1739076642832,-1231.28,9.657e-05,2]
[352394925,1739076642841,-500.0,9.657e-05,2]
[352394926,1739076642851,-500.0,9.657e-05,2]
[352394927,1739076642861,-500.0,9.657e-05,2]
[352394928,1739076642870,-500.0,9.657e-05,2]
[352394929,1739076642879,-500.0,9.657e-05,2]
[352394930,1739076642888,-296.8,9.657e-05,2]
[352394931,1739076642897,-500.0,9.657e-05,2]
[352394932,1739076642907,-526.88,9.657e-05,2]
[352394933,1739076642916,-500.0,9.657e-05,2]
[352394934,1739076642926,-1294.54,9.657e-05,2]
[352394935,1739076642936,-500.0,9.657e-05,2]
[352394936,1739076642946,-532.97,9.657e-05,2]
[352394937,1739076642956,-569.17,9.657e-05,2]
[352394938,1739076642965,-500.0,9.657e-05,2]
[352394939,1739076642975,-595.69,9.657e-05,2]
[352394940,1739076642985,-561.26,9.657e-05,2]
[352394941,1739076642994,-500.0,9.657e-05,2]
[352394942,1739076643005,-614.2,9.657e-05,2]
[352394943,1739076643015,-934.74,9.657e-05,2]
[352394944,1739076643025,-500.0,9.657e-05,2]
[352394945,1739076643035,-1217.68,9.657e-05,2]
[352394946,1739076643045,-576.79,9.657e-05,2]
[352394947,1739076643054,-500.0,9.657e-05,2]
[352394948,1739076643063,-2420.22,9.657e-05,2]
[352394949,1739076643074,-500.0,9.657e-05,2]
[352394950,1739076643085,-500.0,9.657e-05,2]
[352394951,1739076643094,-553.85,9.657e-05,2]
[352394952,1739076643102,-500.0,9.657e-05,2]
[352394953,1739076643111,-802.79,9.657e-05,2]
[352394955,1739076643121,-696.38,9.657e-05,2]
[352394957,1739076643130,-500.0,9.657e-05,2]
[352394959,1739076643139,-500.0,9.657e-05,2]
[352394961,1739076643148,-500.0,9.657e-05,2]
[352394964,1739076643158,-500.0,9.657e-05,2]
[352394967,1739076643168,-710.21,9.657e-05,2]
[352394969,1739076643177,-500.0,9.657e-05,2]
[352394971,1739076643186,-578.14,9.657e-05,2]
[352394972,1739076643195,-930.43,9.657e-05,2]
[352394973,1739076643205,-500.0,9.657e-05,2]
[352394974,1739076643215,-500.0,9.657e-05,2]
[352394976,1739076643224,-1820.59,9.657e-05,2]
[352394978,1739076643234,-951.34,9.657e-05,2]
[352394980,1739076643243,-500.0,9.657e-05,2]
[352394981,1739076643254,-500.0,9.657e-05,2]
[352394982,1739076643263,-593.69,9.657e-05,2]
[352394983,1739076643274,-500.0,9.657e-05,2]
[352394984,1739076643284,-500.0,9.657e-05,2]
[352394985,1739076643293,-505.59,9.657e-05,2]
[352394986,1739076643303,-500.0,9.657e-05,2]
[352394987,1739076643312,-768.25,9.657e-05,2]
[352394988,1739076643322,-1073.3,9.657e-05,2]
[352394989,1739076643333,-500.0,9.657e-05,2]
[352394990,1739076643342,-500.0,9.794e-05,2]
[352394991,1739076643351,-500.0,9.794e-05,2]
[352394992,1739076643360,-500.0,9.794e-05,2]
[352394993,1739076643370,-500.0,9.794e-05,2]
[352394994,1739076643380,-500.0,9.794e-05,2]
[352394995,1739076643389,-578.08,9.794e-05,2]
[352394996,1739076643398,-500.0,9.794e-05,2]
[352394997,1739076643407,-500.0,9.794e-05,2]
[352394998,1739076643418,-500.0,9.794e-05,2]
[352394999,1739076643427,-205.084992,9.794e-05,2]
[352395000,1739076643437,-254.811809,9.794e-05,2]
[352395001,1739076643449,-303.76,9.794e-05,2]
[352395002,1739076643458,-500.0,9.794e-05,2]
[352395003,1739076643467,-457.84,9.794e-05,2]
[352395004,1739076643476,-500.0,9.794e-05,2]
[352395005,1739076643485,-500.0,9.794e-05,2]
[352395006,1739076643495,-500.0,9.794e-05,2]
[352395007,1739076643507,-500.0,9.794e-05,2]
[352395008,1739076643516,-500.0,9.794e-05,2]
[352395009,1739076643527,-500.0,9.794e-05,2]
[352395010,1739076643537,-659.91,9.794e-05,2]
[352395011,1739076643547,-500.0,9.794e-05,2]
[352395012,1739076643560,-776.05,9.794e-05,2]
[352395013,1739076643570,-1523.21,9.794e-05,2]
[352395014,1739076643579,-788.97,9.794e-05,2]
[352395015,1739076643589,-500.0,9.794e-05,2]
[352395016,1739076643601,-601.66,9.794e-05,2]
[352395017,1739076643610,-875.01,9.794e-05,2]
[352395018,1739076643620,-500.0,9.794e-05,2]
[352395019,1739076643633,-500.0,9.794e-05,2]
[352395020,1739076643642,-562.88,9.794e-05,2]
[352395021,1739076643651,-500.0,9.794e-05,2]
[352395022,1739076643660,-500.0,9.794e-05,2]
[352395023,1739076643671,-500.0,9.794e-05,2]
[352395024,1739076643680,-500.0,9.794e-05,2]
[352395025,1739076643690,-868.43,9.794e-05,2]
[352395026,1739076643699,-500.0,9.794e-05,2]
[352395027,1739076643709,-1231.28,9.794e-05,2]
[352395028,1739076643718,-500.0,9.794e-05,2]
[352395029,1739076643729,-500.0,9.794e-05,2]
[352395030,1739076643741,-500.0,9.794e-05,2]
[352395031,1739076643751,-493.3,9.794e-05,2]
[352395032,1739076643760,-500.0,9.794e-05,2]
[352395033,1739076643769,-500.0,9.794e-05,2]
[352395034,1739076643779,-526.88,9.794e-05,2]
[352395035,1739076643788,-500.0,9.794e-05,2]
[352395036,1739076643798,-1294.54,9.794e-05,2]
[352395037,1739076643807,-500.0,9.794e-05,2]
[352395038,1739076643816,-532.97,9.794e-05,2]
[352395039,1739076643825,-569.17,9.794e-05,2]
[352395041,1739076643835,-500.0,9.794e-05,2]
[352395043,1739076643844,-595.69,9.794e-05,2]
[352395044,1739076643854,-561.26,9.794e-05,2]
[352395045,1739076643863,-500.0,9.794e-05,2]
[352395047,1739076643872,-614.2,9.794e-05,2]
[352395049,1739076643882,-934.74,9.794e-05,2]
[352395051,1739076643891,-500.0,9.794e-05,2]
[352395053,1739076643901,-1217.68,9.794e-05,2]
[352395054,1739076643910,-576.79,9.794e-05,2]
[352395057,1739076643919,-500.0,9.794e-05,2]
[352395059,1739076643928,-2420.22,9.794e-05,2]
[352395062,1739076643938,-500.0,9.794e-05,2]
[352395064,1739076643947,-500.0,9.794e-05,2]
[352395066,1739076643957,-553.85,9.794e-05,2]
[352395067,1739076643966,-590.09808503,9.794e-05,2]
[352395068,1739076643977,-802.79,9.794e-05,2]
[352395069,1739076643986,-696.38,9.794e-05,2]
[352395070,1739076643995,-500.0,9.794e-05,2]
[352395071,1739076644005,-500.0,9.794e-05,2]
[352395072,1739076644014,-500.0,9.794e-05,2]
[352395073,1739076644023,-500.0,9.794e-05,2]
[352395074,1739076644033,-710.21,9.794e-05,2]
[352395075,1739076644042,-500.0,9.794e-05,2]
[352395076,1739076644051,-578.14,9.794e-05,2]
[352395077,1739076644061,-930.43,9.794e-05,2]
[352395078,1739076644071,-500.0,9.794e-05,2]
[352395079,1739076644080,-500.0,9.794e-05,2]
[352395080,1739076644091,-1820.59,9.794e-05,2]
[352395081,1739076644101,-951.34,9.794e-05,2]
[352395082,1739076644111,-500.0,9.794e-05,2]
[352395083,1739076644120,-500.0,9.794e-05,2]
[352395084,1739076644130,-593.69,9.794e-05,2]
[352395085,1739076644140,-500.0,9.794e-05,2]
[352395086,1739076644150,-500.0,9.794e-05,2]
[352395087,1739076644159,-505.59,9.794e-05,2]
[352395088,1739076644171,-500.0,9.794e-05,2]
[352395089,1739076644180,-768.25,9.794e-05,2]
[352395090,1739076644190,-1073.3,9.794e-05,2]
[352395091,1739076644199,-500.0,9.794e-05,2]
[352395092,1739076644208,-150.0,9.808e-05,2]
[352395093,1739076644218,-150.0,9.907e-05,2]
[352395094,1739076644228,-500.0,9.931e-05,2]
[352395095,1739076644237,-500.0,9.931e-05,2]
[352395096,1739076644246,-500.0,9.931e-05,2]
[352395097,1739076644256,-500.0,9.931e-05,2]
[352395098,1739076644265,-500.0,9.931e-05,2]
[352395099,1739076644275,-500.0,9.931e-05,2]
[352395100,1739076644284,-578.56,9.931e-05,2]
[352395101,1739076644294,-500.0,9.931e-05,2]
[352395102,1739076644303,-205.084992,9.931e-05,2]
[352395103,1739076644312,-254.811809,9.931e-05,2]
[352395104,1739076644321,-520.28748894,9.931e-05,2]
[352395105,1739076644331,-500.0,9.931e-05,2]
[352395106,1739076644341,-500.0,9.931e-05,2]
[352395107,1739076644350,-500.0,9.931e-05,2]
[352395108,1739076644360,-500.0,9.931e-05,2]
[352395109,1739076644369,-174.2,9.931e-05,2]
[352395110,1739076644379,-458.24,9.931e-05,2]
[352395111,1739076644388,-659.91,9.931e-05,2]
[352395112,1739076644398,-500.0,9.931e-05,2]
[352395113,1739076644407,-776.05,9.931e-05,2]
[352395114,1739076644416,-1523.21,9.931e-05,2]
[352395115,1739076644426,-788.97,9.931e-05,2]
[352395116,1739076644435,-500.0,9.931e-05,2]
[352395117,1739076644444,-601.66,9.931e-05,2]
[352395118,1739076644453,-875.01,9.931e-05,2]
[352395119,1739076644463,-500.0,9.931e-05,2]
[352395120,1739076644472,-500.0,9.931e-05,2]
[352395121,1739076644481,-562.88,9.931e-05,2]
[352395122,1739076644490,-500.0,9.931e-05,2]
[352395123,1739076644500,-500.0,9.931e-05,2]
[352395124,1739076644509,-500.0,9.931e-05,2]
[352395125,1739076644518,-500.0,9.931e-05,2]
[352395126,1739076644528,-868.43,9.931e-05,2]
[352395127,1739076644538,-500.0,9.931e-05,2]
[352395128,1739076644548,-1231.28,9.931e-05,2]
[352395129,1739076644563,-500.0,9.931e-05,2]
[352395130,1739076644573,-500.0,9.931e-05,2]
[352395131,1739076644583,-316.05801844,9.931e-05,2]
[352395132,1739076644593,-500.0,9.931e-05,2]
[352395133,1739076644603,-500.0,9.931e-05,2]
[352395134,1739076644612,-526.88,9.931e-05,2]
[352395135,1739076644622,-500.0,9.931e-05,2]
[352395136,1739076644634,-1294.54,9.931e-05,2]
[352395137,1739076644644,-500.0,9.931e-05,2]
[352395138,1739076644654,-532.97,9.931e-05,2]
[352395139,1739076644664,-569.17,9.931e-05,2]
[352395140,1739076644673,-178.63570525,9.931e-05,2]
[352395141,1739076644683,-595.69,9.931e-05,2]
[352395142,1739076644692,-561.26,9.931e-05,2]
[352395143,1739076644702,-372.3,9.931e-05,2]
[352395144,1739076644711,-614.2,9.931e-05,2]
[352395145,1739076644720,-934.74,9.931e-05,2]
[352395146,1739076644731,-500.0,9.931e-05,2]
[352395147,1739076644740,-1217.68,9.931e-05,2]
[352395148,1739076644750,-576.79,9.931e-05,2]
[352395149,1739076644759,-500.0,9.931e-05,2]
[352395150,1739076644770,-2420.22,9.931e-05,2]
[352395151,1739076644779,-500.0,9.931e-05,2]
[352395152,1739076644788,-500.0,9.931e-05,2]
[352395153,1739076644798,-553.85,9.931e-05,2]
[352395154,1739076644807,-802.79,9.931e-05,2]
[352395155,1739076644817,-696.38,9.931e-05,2]
[352395156,1739076644827,-500.0,9.931e-05,2]
[352395157,1739076644836,-500.0,9.931e-05,2]
[352395158,1739076644847,-500.0,9.931e-05,2]
[352395159,1739076644856,-500.0,9.931e-05,2]
[352395160,1739076644867,-710.21,9.931e-05,2]
[352395161,1739076644877,-500.0,9.931e-05,2]
[352395162,1739076644886,-578.14,9.931e-05,2]
[352395163,1739076644896,-930.43,9.931e-05,2]
[352395164,1739076644906,-500.0,9.931e-05,2]
[352395165,1739076644915,-500.0,9.931e-05,2]
[352395166,1739076644925,-951.34,9.931e-05,2]
[352395167,1739076644935,-1820.59,9.931e-05,2]
[352395168,1739076644946,-500.0,9.931e-05,2]
[352395169,1739076644956,-500.0,9.931e-05,2]
[352395170,1739076644967,-593.69,9.931e-05,2]
[352395171,1739076644978,-500.0,9.931e-05,2]
[352395172,1739076644988,-500.0,9.931e-05,2]
[352395173,1739076644998,-505.59,9.931e-05,2]
[352395174,1739076645008,-500.0,9.931e-05,2]
[352395175,1739076645018,-768.25,9.931e-05,2]